fUSD/lending_fUSD_20240404
["ID","MTS","AMOUNT","RATE_DAILY","PERIOD"]
[321468602,1712205073955,-4665.17,0.00052054,120]
[321468603,1712205073967,-292.667321,0.00052054,120]
[321468604,1712205073978,-735.54,0.00052054,120]
[321468605,1712205073987,-292.667321,0.00052054,120]
[321468606,1712205073996,-1097.27,0.00052054,120]
[321468607,1712205074005,-502.7737253,0.00052054,120]
[321468608,1712205074014,-799.28,0.00052054,120]
[321468609,1712205074024,-672.19,0.00052054,120]
[321468610,1712205074033,-500.0,0.00052054,120]
[321468611,1712205074042,-500.0,0.00052054,120]
[321468612,1712205074051,-292.667321,0.00052054,120]
[321468613,1712205074060,-292.667316,0.00052054,120]
[321468614,1712205074069,-500.0,0.00052054,120]
[321468615,1712205074078,-500.0,0.00052054,120]
[321468616,1712205074087,-5949.11,0.00052054,120]
[321468617,1712205074097,-500.0,0.00052054,120]
[321468618,1712205074107,-441.83957724,0.00052054,120]
[321468619,1712205074116,-500.0,0.00052054,120]
[321468620,1712205074126,-2791.3,0.00052054,120]
[321468621,1712205074135,-14921.22,0.00052054,120]
[321468622,1712205074144,-18245.67,0.00052054,120]
[321468623,1712205074153,-500.0,0.00052054,120]
[321468624,1712205074163,-4475.43,0.00052054,120]
[321468625,1712205074172,-151.0,0.00052054,7]
[321468626,1712205074181,-151.0,0.00052054,7]
[321468627,1712205074190,-6275.85,0.00052054,120]
[321468628,1712205074199,-500.0,0.00052054,120]
[321468629,1712205074208,-2018.13,0.00052054,120]
[321468630,1712205074219,-534.96999093,0.00052054,120]
[321468631,1712205074228,-500.0,0.00052054,120]
[321468632,1712205074237,-1108.08,0.00052054,120]
[321468633,1712205074246,-500.0,0.00052054,120]
[321468634,1712205074255,-510.53308447,0.00052054,120]
[321468635,1712205074266,-515.63273388,0.00052054,120]
[321468636,1712205074275,-500.0,0.00052054,120]
[321468637,1712205074288,-6102.44,0.00052054,120]
[321468638,1712205074297,-919.9,0.00052054,120]
[321468639,1712205074308,-508.31427507,0.00052054,120]
[321468640,1712205074318,-2135.87,0.00052054,120]
[321468641,1712205074327,-500.0,0.00052054,120]
[321468642,1712205074337,-5109.05,0.00052054,120]
[321468643,1712205074347,-500.0,0.00052054,120]
[321468644,1712205074356,-992.63,0.00052054,120]
[321468645,1712205074366,-506.07598041,0.00052054,120]
[321468646,1712205074376,-500.0,0.00052054,120]
[321468647,1712205074386,-600.0,0.00052054,2]
[321468648,1712205074395,-500.0,0.00052054,120]
[321468649,1712205074405,-430.65531202,0.00052054,120]
[321468650,1712205074414,-23315.73,0.00052054,120]
[321468651,1712205074423,-4703.57,0.00052054,120]
[321468652,1712205074433,-4151.44,0.00052054,120]
[321468653,1712205074442,-500.0,0.00052054,120]
[321468654,1712205074453,-500.0,0.00052054,120]
[321468655,1712205074462,-6927.54,0.00052054,120]
[321468656,1712205074473,-41356.64,0.00052054,120]
[321468657,1712205074483,-507.74661043,0.00052054,120]
[321468658,1712205074492,-615.36,0.00052054,120]
[321468659,1712205074501,-870.28,0.00052054,120]
[321468660,1712205074511,-500.0,0.00052054,120]
[321468661,1712205074522,-514.0628798,0.00052054,120]
[321468662,1712205074532,-500.0,0.00052054,120]
[321468663,1712205074543,-515.30184957,0.00052054,120]
[321468664,1712205074553,-1849.99,0.00052054,120]
[321468665,1712205074562,-15792.18,0.00052054,120]
[321468666,1712205074572,-500.0,0.00052054,120]
[321468667,1712205074582,-1272.03,0.00052054,120]
[321468668,1712205074591,-2939.58,0.00052054,120]
[321468669,1712205074601,-3696.52,0.00052054,120]
[321468670,1712205074610,-1123.27,0.00052054,120]
[321468671,1712205074620,-229.451021,0.00052054,30]
[321468672,1712205074631,-3344.08,0.00052054,120]
[321468673,1712205074640,-500.0,0.00052054,120]
[321468674,1712205074650,-500.73087838,0.00052054,120]
[321468675,1712205074659,-676.77,0.00052054,120]
[321468676,1712205074669,-562.41206154,0.00052054,120]
[321468677,1712205074678,-500.0,0.00052054,120]
[321468678,1712205074687,-510.01324328,0.00052054,120]
[321468679,1712205074697,-537.37,0.00052054,120]
[321468680,1712205074706,-229.451019,0.00052054,30]
[321468681,1712205074716,-1303.95,0.00052054,120]
[321468682,1712205074725,-500.0,0.00052054,120]
[321468683,1712205074735,-504.19960986,0.00052054,120]
[321468684,1712205074744,-1733.35,0.00052054,7]
[321468685,1712205074753,-4080.08,0.00052054,120]
[321468686,1712205074763,-4886.13,0.00052054,120]
[321468687,1712205074773,-837.75,0.00052054,120]
[321468688,1712205074784,-1635.35,0.00052054,120]
[321468689,1712205074793,-500.0,0.00052054,120]
[321468690,1712205074803,-1732.84,0.00052054,120]
[321468691,1712205074813,-500.0,0.00052054,120]
[321468692,1712205074823,-5099.91,0.00052054,120]
[321468693,1712205074833,-1209.39,0.00052054,120]
[321468694,1712205074842,-509.97,0.00052054,120]
[321468695,1712205074852,-500.0,0.00052054,120]
[321468696,1712205074861,-875.1,0.00052054,120]
[321468697,1712205074871,-3432.21,0.00052054,120]
[321468698,1712205074881,-1694.74,0.00052054,120]
[321468699,1712205074890,-518.06448733,0.00052054,120]
[321468700,1712205074901,-575.29,0.00052054,120]
[321468701,1712205074911,-4905.13,0.00052054,120]
[321468702,1712205074921,-500.74457924,0.00052054,120]
[321468703,1712205074930,-2782.34,0.00052054,120]
[321468704,1712205074940,-259.428547,0.00052054,120]
[321468705,1712205074949,-527.47111755,0.00052054,120]
[321468706,1712205074959,-888.72,0.00052054,120]
[321468707,1712205074970,-7766.11,0.00052054,120]
[321468708,1712205074980,-3864.9,0.00052054,120]
[321468709,1712205074990,-162.974525,0.00052054,120]
[321468710,1712205075000,-259.428541,0.00052054,120]
[321468711,1712205075009,-751.57,0.00052054,120]
[321468712,1712205075018,-526.32338866,0.00052054,120]
[321468713,1712205075027,-162.974518,0.00052054,120]
[321468714,1712205075037,-803.25,0.00052054,120]
[321468715,1712205075046,-500.0,0.00052054,120]
[321468716,1712205075056,-6129.82,0.00052054,120]
[321468717,1712205075066,-6129.82,0.00052054,120]
[321468718,1712205075075,-6129.82,0.00052054,120]
[321468719,1712205075085,-4562.2,0.00052054,120]
[321468720,1712205075094,-6129.82,0.00052054,120]
[321468721,1712205075104,-1987.82,0.00052054,120]
[321468722,1712205075113,-8315.86,0.00052054,30]
[321468723,1712205075123,-6129.82,0.00052054,120]
[321468724,1712205075132,-6129.82,0.00052054,120]
[321468725,1712205075142,-500.0,0.00052054,120]
[321468726,1712205075152,-6129.82,0.00052054,120]
[321468727,1712205075161,-1851.98,0.00052054,120]
[321468728,1712205075171,-505.21089632,0.00052054,120]
[321468729,1712205075181,-6129.82,0.00052054,120]
[321468730,1712205075191,-6129.82,0.00052054,120]
[321468731,1712205075201,-6129.82,0.00052054,120]
[321468732,1712205075212,-6129.82,0.00052054,120]
[321468733,1712205075225,-2271.57,0.00052054,120]
[321468734,1712205075235,-6129.82,0.00052054,120]
[321468735,1712205075245,-6129.82,0.00052054,120]
[321468736,1712205075255,-500.0,0.00052054,120]
[321468737,1712205075268,-6129.82,0.00052054,120]
[321468738,1712205075278,-500.0,0.00052054,120]
[321468739,1712205075288,-2487.96,0.00052054,120]
[321468740,1712205075297,-6129.82,0.00052054,120]
[321468741,1712205075307,-6129.82,0.00052054,120]
[321468742,1712205075317,-6129.82,0.00052054,120]
[321468743,1712205075326,-522.40613277,0.00052054,120]
[321468744,1712205075336,-6129.82,0.00052054,120]
[321468745,1712205075346,-156.287681,0.00052054,120]
[321468746,1712205075357,-6129.82,0.00052054,120]
[321468747,1712205075367,-6129.82,0.00052054,120]
[321468748,1712205075376,-500.0,0.00052054,120]
[321468749,1712205075386,-6129.82,0.00052054,120]
[321468750,1712205075396,-1278.23,0.00052054,120]
[321468751,1712205075406,-222.561591,0.00052054,120]
[321468752,1712205075416,-6129.82,0.00052054,120]
[321468753,1712205075425,-876.88,0.00052054,120]
[321468754,1712205075435,-6129.82,0.00052054,120]
[321468755,1712205075444,-6130.05981535,0.00052054,120]
[321468756,1712205075454,-500.0,0.00052054,120]
[321468757,1712205075464,-2504.56,0.00052054,21]
[321468758,1712205075476,-500.0,0.00052054,120]
[321468759,1712205075485,-500.0,0.00052054,120]
[321468760,1712205075494,-2979.25,0.00052054,120]
[321468761,1712205075503,-2892.04,0.00052054,120]
[321468762,1712205075513,-1123.71,0.00052054,120]
[321468763,1712205075522,-551.99876956,0.00052054,120]
[321468764,1712205075531,-5569.8,0.00052054,120]
[321468765,1712205075541,-1307.57,0.00052054,120]
[321468766,1712205075550,-3337.52,0.00052054,120]
[321468767,1712205075561,-929.17,0.00052054,120]
[321468768,1712205075571,-505.42056982,0.00052054,120]
[321468769,1712205075581,-1125.88,0.00052054,120]
[321468770,1712205075591,-531.5,0.00052054,120]
[321468771,1712205075600,-500.0,0.00052054,120]
[321468772,1712205075610,-1352.42,0.00052054,120]
[321468773,1712205075620,-353.12616233,0.00052054,2]
[321468774,1712205075630,-1122.07,0.00052054,120]
[321468775,1712205075641,-502.41973736,0.00052054,120]
[321468776,1712205075651,-500.0,0.00052054,120]
[321468777,1712205075663,-1213.04,0.00052054,120]
[321468778,1712205075672,-500.0,0.00052054,2]
[321468779,1712205075682,-2053.81,0.00052054,120]
[321468780,1712205075691,-1165.99,0.00052054,120]
[321468781,1712205075703,-500.0,0.00052054,120]
[321468782,1712205075715,-5718.06,0.00052054,120]
[321468783,1712205075726,-20056.54,0.00052054,120]
[321468784,1712205075736,-500.0,0.00052054,120]
[321468785,1712205075746,-500.0,0.00052054,30]
[321468786,1712205075755,-724.94,0.00052054,120]
[321468787,1712205075765,-151.0,0.00052054,120]
[321468788,1712205075775,-4945.29,0.00052054,120]
[321468789,1712205075785,-1452.87,0.00052054,120]
[321468790,1712205075794,-3353.7,0.00052054,120]
[321468791,1712205075804,-500.0,0.00052054,120]
[321468792,1712205075814,-503.5588665,0.00052054,120]
[321468793,1712205075824,-1029.43,0.00052054,120]
[321468794,1712205075833,-500.0,0.00052054,120]
[321468795,1712205075843,-2841.02,0.00052054,120]
[321468796,1712205075853,-4342.51,0.00052054,120]
[321468797,1712205075862,-500.0,0.00052054,120]
[321468798,1712205075872,-2140.05,0.00052054,120]
[321468799,1712205075882,-507.85570057,0.00052054,120]
[321468800,1712205075891,-500.0,0.00052054,120]
[321468801,1712205075901,-503.7149985,0.00052054,120]
[321468802,1712205075911,-500.0,0.00052054,120]
[321468803,1712205075921,-523.14768251,0.00052054,120]
[321468804,1712205075931,-500.0,0.00052054,120]
[321468805,1712205075941,-1521.74,0.00052054,120]
[321468806,1712205075951,-461.879019,0.00052054,120]
[321468807,1712205075960,-500.0,0.00052054,120]
[321468808,1712205075972,-259.233093,0.00052054,7]
[321468809,1712205075982,-503.20414012,0.00052054,120]
[321468810,1712205075992,-500.0,0.00052054,120]
[321468811,1712205076002,-500.0,0.00052054,120]
[321468812,1712205076012,-4169.84,0.00052054,120]
[321468813,1712205076022,-518.43747165,0.00052054,120]
[321468814,1712205076032,-461.879013,0.00052054,120]
[321468815,1712205076042,-514.12456439,0.00052054,120]
[321468816,1712205076053,-500.0,0.00052054,120]
[321468817,1712205076063,-259.233098,0.00052054,7]
[321468818,1712205076073,-705.27,0.00052054,120]
[321468819,1712205076083,-500.0,0.00052054,120]
[321468820,1712205076093,-509.61,0.00052054,120]
[321468821,1712205076103,-2080.39,0.00052054,120]
[321468822,1712205076114,-516.96789667,0.00052054,120]
[321468823,1712205076123,-500.0,0.00052054,120]
[321468824,1712205076133,-6271.8,0.00052054,120]
[321468825,1712205076143,-512.46101032,0.00052054,120]
[321468826,1712205076152,-319.68924003,0.00052054,120]
[321468827,1712205076162,-500.0,0.00052054,2]
[321468828,1712205076171,-500.0,0.00052054,120]
[321468829,1712205076181,-531.67275057,0.00052054,120]
[321468830,1712205076191,-1236.67,0.00052054,120]
[321468831,1712205076201,-513.13367788,0.00052054,120]
[321468832,1712205076210,-500.0,0.00052054,120]
[321468833,1712205076221,-500.0,0.00052054,120]
[321468834,1712205076231,-2450.71,0.00052054,120]
[321468835,1712205076240,-1883.85,0.00052054,120]
[321468836,1712205076250,-500.0,0.00052054,2]
[321468837,1712205076259,-655.25,0.00052054,120]
[321468838,1712205076276,-540.54,0.00052054,120]
[321468839,1712205076286,-1887.51,0.00052054,120]
[321468840,1712205076296,-500.0,0.00052054,120]
[321468841,1712205076305,-500.0,0.00052054,120]
[321468842,1712205076315,-10485.55,0.00052054,120]
[321468843,1712205076325,-406.65,0.00052055,2]
[321468844,1712205076335,-238.86502259,0.00052061,60]
[321468845,1712205076345,-3326.875111,0.000521,2]
[321468846,1712205076355,-500.0,0.00052109,120]
[321468847,1712205076365,-151.0,0.0005211,120]
[321468848,1712205076375,-155.3609739,0.00052133,60]
[321468849,1712205076385,-701.12911996,0.00052137,120]
[321468850,1712205076394,-350.56455998,0.00052137,120]
[321468851,1712205076404,-604.22994504,0.00052163,60]
[321468852,1712205076413,-500.0,0.00052164,120]
[321468853,1712205076424,-510.18312938,0.00052182,60]
[321468854,1712205076664,-157.64312318,0.00052189,60]
[321468855,1712205076674,-500.0,0.00052219,120]
[321468856,1712205076684,-152.0,0.00052226,9]
[321468857,1712205076694,-154.06850799,0.0005224,60]
[321468858,1712205076704,-211.99904312,0.00052254,60]
[321468859,1712205076714,-212.0,0.0005226,30]
[321468860,1712205076724,-211.99904312,0.0005227,60]
[321468861,1712205076734,-500.0,0.00052273,120]
[321468862,1712205076743,-150.0,0.000523,11]
[321468863,1712205076753,-348.62,0.00052301,30]
[321468864,1712205076763,-306.58,0.00052301,30]
[321468865,1712205076773,-848.26,0.00052301,30]
[321468866,1712205076783,-161.95,0.00052301,30]
[321468867,1712205076792,-150.0,0.00052301,30]
[321468868,1712205076803,-151.4,0.00052301,60]
[321468869,1712205076812,-164.14,0.00052301,30]
[321468870,1712205076822,-300.0,0.00052301,30]
[321468871,1712205076832,-904.92,0.00052301,30]
[321468872,1712205076842,-161.95,0.00052301,30]
[321468873,1712205076851,-150.0,0.00052301,30]
[321468874,1712205076862,-161.95,0.00052301,30]
[321468875,1712205076871,-904.92,0.00052301,30]
[321468876,1712205076880,-150.0,0.00052301,30]
[321468877,1712205076890,-904.92,0.00052301,30]
[321468878,1712205076899,-161.95,0.00052301,30]
[321468879,1712205076909,-150.0,0.00052301,30]
[321468880,1712205076919,-161.95,0.00052301,30]
[321468881,1712205076928,-150.0,0.00052301,30]
[321468882,1712205076938,-161.95,0.00052301,30]
[321468883,1712205076947,-162.42,0.00052301,30]
[321468884,1712205076957,-161.95,0.00052301,30]
[321468885,1712205076968,-161.95,0.00052301,30]
[321468886,1712205076977,-161.95,0.00052301,30]
[321468887,1712205076987,-161.95,0.00052301,30]
[321468888,1712205076997,-161.95,0.00052301,30]
[321468889,1712205077007,-161.95,0.00052301,30]
[321468890,1712205077017,-161.95,0.00052301,30]
[321468891,1712205077026,-161.95,0.00052301,30]
[321468892,1712205077036,-161.95,0.00052301,30]
[321468893,1712205077046,-161.95,0.00052301,30]
[321468894,1712205077055,-729.12,0.00052301,30]
[321468895,1712205077065,-799999.9999462,0.0005231,30]
[321468896,1712205077074,-151.0,0.0005231,120]
[321468897,1712205077083,-151.0,0.0005231,120]
[321468898,1712205077094,-155.3609739,0.00052313,60]
[321468899,1712205077103,-6319.5066745,0.00052319,2]
[321468900,1712205077113,-270.7598411,0.00052325,2]
[321468901,1712205077123,-403.14495324,0.00052326,120]
[321468902,1712205077133,-11877.8713437,0.00052326,120]
[321468903,1712205077143,-10418.17598975,0.00052327,5]
[321468904,1712205077152,-10418.17598975,0.00052327,5]
[321468905,1712205077162,-170.29193997,0.00052327,7]
[321468906,1712205077173,-839.29836538,0.00052327,2]
[321468907,1712205077182,-2000.0,0.00052327,15]
[321468908,1712205077192,-200.0,0.00052327,15]
[321468909,1712205077202,-500.0,0.00052327,60]
[321468910,1712205077212,-313.0,0.00052327,60]
[321468911,1712205077224,-304.0,0.00052327,60]
[321468912,1712205077234,-301.0,0.00052327,60]
[321468913,1712205077243,-508.0,0.00052327,60]
[321468914,1712205077253,-500.0,0.00052328,30]
[321468915,1712205077264,-500.0,0.00052328,30]
[321468916,1712205077273,-500.0,0.00052328,120]
[321468917,1712205077286,-500.0,0.00052328,120]
[321468918,1712205077295,-500.0,0.00052328,120]
[321468919,1712205077305,-514.21668029,0.00052328,120]
[321468920,1712205077316,-511.95274914,0.00052328,120]
[321468921,1712205077326,-500.0,0.00052328,120]
[321468922,1712205077336,-514.25549807,0.00052328,120]
[321468923,1712205077346,-500.0,0.00052328,120]
[321468924,1712205077356,-500.0,0.00052328,120]
[321468925,1712205077366,-500.0,0.00052328,30]
[321468926,1712205077377,-501.51245035,0.00052328,120]
[321468927,1712205077386,-500.0,0.00052328,120]
[321468928,1712205077395,-500.0,0.00052328,120]
[321468929,1712205077404,-500.0,0.00052328,120]
[321468930,1712205077415,-512.48204618,0.00052328,120]
[321468931,1712205077424,-512.31552516,0.00052328,120]
[321468932,1712205077434,-500.0,0.00052328,120]
[321468933,1712205077443,-508.2810386,0.00052328,120]
[321468934,1712205077452,-507.7247985,0.00052328,120]
[321468935,1712205077462,-500.0,0.00052328,120]
[321468936,1712205077475,-511.17307466,0.00052328,120]
[321468937,1712205077485,-540.11164099,0.00052328,120]
[321468938,1712205077494,-520.20038932,0.00052328,120]
[321468939,1712205077504,-200.0,0.00052328,10]
[321468940,1712205077514,-500.0,0.00052328,120]
[321468941,1712205077523,-504.12325996,0.00052328,120]
[321468942,1712205077534,-500.0,0.00052328,120]
[321468943,1712205077544,-661.04,0.00052328,120]
[321468944,1712205077554,-500.0,0.00052328,120]
[321468945,1712205077564,-500.0,0.00052328,120]
[321468946,1712205077574,-500.0,0.00052328,120]
[321468947,1712205077584,-500.0,0.00052328,120]
[321468948,1712205077594,-500.0,0.00052328,120]
[321468949,1712205077604,-688.56,0.00052328,120]
[321468950,1712205077614,-500.0,0.00052328,120]
[321468951,1712205077624,-500.0,0.00052328,2]
[321468952,1712205077635,-500.0,0.00052328,120]
[321468953,1712205077644,-500.0,0.00052328,120]
[321468954,1712205077654,-677.25,0.00052328,120]
[321468955,1712205077663,-500.0,0.00052328,120]
[321468956,1712205077673,-500.0,0.00052328,120]
[321468957,1712205077684,-500.0,0.00052328,120]
[321468958,1712205077693,-500.0,0.00052328,120]
[321468959,1712205077703,-500.0,0.00052328,120]
[321468960,1712205077712,-514.46,0.00052328,120]
[321468961,1712205077725,-500.0,0.00052328,120]
[321468962,1712205077735,-524.90629229,0.00052328,120]
[321468963,1712205077745,-500.0,0.00052328,120]
[321468964,1712205077755,-500.0,0.00052328,120]
[321468965,1712205077765,-500.0,0.00052328,120]
[321468966,1712205077775,-500.0,0.00052328,120]
[321468967,1712205077785,-500.0,0.00052328,120]
[321468968,1712205077795,-500.0,0.00052328,120]
[321468969,1712205077804,-2000.0,0.00052328,30]
[321468970,1712205077814,-500.0,0.00052328,120]
[321468971,1712205077824,-500.0,0.00052328,120]
[321468972,1712205077833,-500.0,0.00052328,120]
[321468973,1712205077843,-583.15323151,0.00052328,120]
[321468974,1712205077852,-500.0,0.00052328,120]
[321468975,1712205077862,-500.0,0.00052328,120]
[321468976,1712205077872,-500.0,0.00052328,120]
[321468977,1712205077881,-500.0,0.00052328,120]
[321468978,1712205077891,-500.0,0.00052328,120]
[321468979,1712205077901,-500.0,0.00052328,120]
[321468980,1712205077910,-541.76,0.00052328,120]
[321468981,1712205077920,-500.0,0.00052328,120]
[321468982,1712205077929,-500.0,0.00052328,120]
[321468983,1712205077939,-1000.0,0.00052328,30]
[321468984,1712205077949,-635.94,0.00052328,120]
[321468985,1712205077959,-504.54413197,0.00052328,120]
[321468986,1712205077969,-512.74,0.00052328,120]
[321468987,1712205077979,-565.44,0.00052328,120]
[321468988,1712205077989,-518.12422706,0.00052328,120]
[321468989,1712205077999,-839.9,0.00052328,120]
[321468990,1712205078008,-553.02235714,0.00052328,120]
[321468991,1712205078020,-500.0,0.00052328,120]
[321468992,1712205078030,-500.0,0.00052328,120]
[321468993,1712205078039,-611.33,0.00052328,120]
[321468994,1712205078049,-500.0,0.00052328,120]
[321468995,1712205078058,-500.0,0.00052328,120]
[321468996,1712205078068,-500.0,0.00052328,120]
[321468997,1712205078078,-500.0,0.00052328,120]
[321468998,1712205078088,-563.07287018,0.00052328,120]
[321468999,1712205078098,-531.03982237,0.00052328,120]
[321469000,1712205078107,-500.0,0.00052328,120]
[321469001,1712205078117,-257.20150308,0.00052328,2]
[321469002,1712205078126,-500.0,0.00052328,120]
[321469003,1712205078135,-537.04871046,0.00052328,120]
[321469004,1712205078146,-500.0,0.00052328,120]
[321469005,1712205078156,-500.0,0.00052328,120]
[321469006,1712205078166,-500.0,0.00052328,120]
[321469007,1712205078175,-538.39571917,0.00052328,120]
[321469008,1712205078184,-500.0,0.00052328,120]
[321469009,1712205078193,-664.68,0.00052328,120]
[321469010,1712205078202,-500.0,0.00052328,120]
[321469011,1712205078212,-500.0,0.00052328,120]
[321469012,1712205078227,-500.0,0.00052328,120]
[321469013,1712205078237,-500.0,0.00052328,120]
[321469014,1712205078247,-500.0,0.00052328,120]
[321469015,1712205078257,-500.0,0.00052328,120]
[321469016,1712205078272,-548.20648002,0.00052328,120]
[321469017,1712205078281,-500.0,0.00052328,120]
[321469018,1712205078293,-699.19,0.00052328,120]
[321469019,1712205078303,-500.0,0.00052328,120]
[321469020,1712205078313,-603.02,0.00052328,120]
[321469021,1712205078322,-500.0,0.00052328,120]
[321469022,1712205078331,-500.0,0.00052328,120]
[321469023,1712205078341,-500.0,0.00052328,120]
[321469024,1712205078351,-514.02281228,0.00052328,120]
[321469025,1712205078360,-500.0,0.00052328,120]
[321469026,1712205078369,-500.0,0.00052328,120]
[321469027,1712205078379,-500.0,0.00052328,120]
[321469028,1712205078388,-536.94943736,0.00052328,120]
[321469029,1712205078398,-500.0,0.00052328,120]
[321469030,1712205078407,-500.0,0.00052328,120]
[321469031,1712205078417,-471.72087949,0.00052328,120]
[321469032,1712205078426,-500.0,0.00052328,120]
[321469033,1712205078436,-500.0,0.00052328,120]
[321469034,1712205078445,-515.21338681,0.00052328,15]
[321469035,1712205078455,-500.0,0.00052328,120]
[321469036,1712205078464,-514.97,0.00052328,120]
[321469037,1712205078477,-519.21631251,0.00052328,120]
[321469038,1712205078485,-500.0,0.00052328,120]
[321469039,1712205078494,-580.58,0.00052328,120]
[321469040,1712205078503,-2268.34,0.00052328,120]
[321469041,1712205078512,-448.03199623,0.00052328,120]
[321469042,1712205078522,-510.7,0.00052328,120]
[321469043,1712205078531,-522.67235028,0.00052328,120]
[321469044,1712205078540,-500.0,0.00052328,120]
[321469045,1712205078550,-648.77,0.00052328,120]
[321469046,1712205078559,-500.0,0.00052328,120]
[321469047,1712205078569,-500.0,0.00052328,120]
[321469048,1712205078578,-500.0,0.00052328,120]
[321469049,1712205078588,-500.0,0.00052328,120]
[321469050,1712205078597,-531.65122634,0.00052328,120]
[321469051,1712205078607,-519.32,0.00052328,120]
[321469052,1712205078616,-646.89,0.00052328,120]
[321469053,1712205078625,-500.0,0.00052328,120]
[321469054,1712205078634,-509.31757822,0.00052328,120]
[321469055,1712205078644,-500.0,0.00052328,120]
[321469056,1712205078654,-500.0,0.00052328,120]
[321469057,1712205078664,-500.0,0.00052328,120]
[321469058,1712205078673,-500.0,0.00052328,120]
[321469059,1712205078683,-500.0,0.00052328,120]
[321469060,1712205078693,-500.0,0.00052328,120]
[321469061,1712205078703,-594.72,0.00052328,120]
[321469062,1712205078712,-500.0,0.00052328,120]
[321469063,1712205078725,-500.0,0.00052328,120]
[321469064,1712205078735,-500.0,0.00052328,120]
[321469065,1712205078745,-314.99873244,0.00052328,120]
[321469066,1712205078754,-500.0,0.00052328,120]
[321469067,1712205078764,-518.47830895,0.00052328,120]
[321469068,1712205078773,-653.18,0.00052328,120]
[321469069,1712205078782,-585.21085349,0.00052328,120]
[321469070,1712205078791,-500.0,0.00052328,120]
[321469071,1712205078799,-654.96,0.00052328,120]
[321469072,1712205078808,-500.0,0.00052328,120]
[321469073,1712205078817,-500.0,0.00052328,120]
[321469074,1712205078827,-565.31,0.00052328,120]
[321469075,1712205078836,-500.0,0.00052328,120]
[321469076,1712205078845,-500.0,0.00052328,120]
[321469077,1712205078855,-514.00838817,0.00052328,120]
[321469078,1712205078864,-536.74287548,0.00052328,120]
[321469079,1712205078873,-536.67719447,0.00052328,120]
[321469080,1712205078883,-500.0,0.00052328,120]
[321469081,1712205078892,-500.0,0.00052328,120]
[321469082,1712205078901,-856.28,0.00052328,120]
[321469083,1712205078911,-500.0,0.00052328,120]
[321469084,1712205078921,-500.0,0.00052328,120]
[321469085,1712205078930,-500.0,0.00052328,120]
[321469086,1712205078940,-500.0,0.00052328,120]
[321469087,1712205078949,-500.0,0.00052328,120]
[321469088,1712205078959,-500.0,0.00052328,120]
[321469089,1712205078968,-534.80613149,0.00052328,120]
[321469090,1712205078978,-500.0,0.00052328,120]
[321469091,1712205079075,-500.0,0.00052328,120]
[321469092,1712205079085,-500.0,0.00052328,120]
[321469093,1712205079094,-500.0,0.00052328,120]
[321469094,1712205079103,-500.0,0.00052328,120]
[321469095,1712205079112,-500.0,0.00052328,120]
[321469096,1712205079121,-500.0,0.00052328,120]
[321469097,1712205079131,-538.5,0.00052328,120]
[321469098,1712205079142,-500.0,0.00052328,120]
[321469099,1712205079152,-500.0,0.00052328,120]
[321469100,1712205079161,-532.29,0.00052328,120]
[321469101,1712205079171,-562.78,0.00052328,120]